Cogmind - Beta 15 @@@ ROGUE MODE // 2025.05.16 @ 18:41:24 Player: Fleshy Vegetable Bird Result: Destroyed by Y-45 Defender with Beam Rifle Performance ------------- Evolutions (2) 1000 Regions Visited (9) 1800 Robots Destroyed (133) 665 Value Destroyed (4992) 4992 Prototype IDs (4) 80 Alien Tech Used (0) 0 Bonus (1834) 1834 TOTAL SCORE: 10371 Bonus ------- High Alert Combat Kills 259 Follower Combat Kills 175 Entered Garrisons 400 Used RIF Installer 1000 Cogmind --------- Core Integrity 0/550 Matter 56/300 Energy 40/100 System Corruption 17% Temperature Cool (9) Movement Core (1400) Ox27 Location -8/Garrison Parts ------- > --- POWER (1) -------- (None) > --- PROPULSION (3) --- (None) > --- UTILITY (4) ------ Huge Storage Unit Armor Integrity Analyzer Core Shielding Relay Coupler [Sentry] (24) > --- WEAPON (3) ------- Remote Datajack > --- INVENTORY (25) --- Light Angular Momentum Engine Improved Sensor Array Improved Signal Interpreter Improved Terrain Scanner Melee Analysis Suite Authchip [R/NC] Authchip [R/NC] Authchip [R/Combat] Authchip [R/Combat] Relay Coupler [NC] (36) Relay Coupler [NC] (28) Relay Coupler [NC] (29) Relay Coupler [Swarmer] (42) Relay Coupler [Demolisher] (18) Relay Coupler [Hunter] Gauss Rifle Remote Datajack Katana Katana Katana Peak State ------------ > --- POWER ------------ Improved Ion Engine > --- PROPULSION ------- Aluminum Leg Aluminum Leg Carbon-fiber Leg > --- UTILITY ---------- High-capacity Storage Unit Melee Analysis Suite Target Analyzer High-powered Tractor Beam > --- WEAPON ----------- Heavy Mace Katana Katana > --- INVENTORY -------- Light Nuclear Core Huge Storage Unit Improved Sensor Array Improved Signal Interpreter Improved Terrain Scanner Armor Integrity Analyzer Relay Coupler [NC] Relay Coupler [NC] Relay Coupler [NC] Relay Coupler [Swarmer] Relay Coupler [Grunt] Relay Coupler [Sentry] Heavy Assault Rifle Heavy Assault Rifle Minigun Mini Grenade Launcher Remote Datajack Remote Datajack Katana [Rating: 31] Favorites ----------- Power Deuterium Engine Engine Deuterium Engine Propulsion Wheel Treads Advanced Treads Leg Improved Aluminum Leg Wheel Wheel Flight Unit Improved Flight Unit Utility High-capacity Storage Unit Device Improved Terrain Scanner Storage High-capacity Storage Unit Processor Visual Processing Unit Hackware Relay Coupler [Grunt] Protection Hardened Medium Armor Plating Weapon Katana Energy Cannon Advanced Beam Cannon Ballistic Gun Autogun Ballistic Cannon Improved Light Cannon Launcher Mini Grenade Launcher Special Weapon Remote Datajack Impact Weapon Heavy Mace Slashing Weapon Katana Build | -11 -10 -9 -9 -9 -8 -8 -8 -8 -8 ------- Run | Yrd Mat Mat Min Exi Min Mat Gar Mat Gar Slots Evolved 4 | . . 2 . . . 2 . . . Power . | . . . . . . . . . . Propulsion 1 | . . 1 . . . . . . . Utility 2 | . . 1 . . . 1 . . . Weapon 1 | . . . . . . 1 . . . Parts Attached 87 | 6 12 19 10 2 1 4 13 6 14 Power 7 | 1 1 2 . 1 . . 2 . . Engine 7 | 1 1 2 . 1 . . 2 . . Core . | . . . . . . . . . . Reactor . | . . . . . . . . . . Propulsion 35 | 2 4 8 5 1 1 . 6 4 4 Treads 9 | . . 2 2 . . . 1 2 2 Leg 5 | . . . . . . . 3 . 2 Wheel 20 | 2 4 5 3 1 1 . 2 2 . Hover . | . . . . . . . . . . Flight 1 | . . 1 . . . . . . . Utility 21 | 1 3 4 2 . . 2 2 2 5 Device 5 | . 1 2 . . . . . 2 . Storage 4 | 1 1 1 . . . . . . 1 Processor 4 | . 1 . . . . 1 1 . 1 Hackware 2 | . . . . . . . . . 2 Protection 6 | . . 1 2 . . 1 1 . 1 Artifact . | . . . . . . . . . . Weapon 24 | 2 4 5 3 . . 2 3 . 5 Energy Gun . | . . . . . . . . . . Energy Cannon 1 | . . 1 . . . . . . . Ballistic Gun 10 | 2 1 3 2 . . . 1 . 1 Ballistic Cannon 1 | . . 1 . . . . . . . Launcher 3 | . 2 . 1 . . . . . . Special Weapon 1 | . . . . . . . . . 1 Impact Weapon 2 | . 1 . . . . 1 . . . Slashing Weapon 6 | . . . . . . 1 2 . 3 Piercing Weapon . | . . . . . . . . . . Special Melee Weapon . | . . . . . . . . . . Unidentified Prototypes 4 | . . 4 . . . . . . . Corrupted Parts 1 | . . . . . . . 1 . . System Corruption 11 | . . . . . . . 11 . . Parts Lost 43 | . 2 4 7 . 1 3 13 2 11 Power 3 | . . . . . . . 2 . 1 Propulsion 22 | . 1 3 4 . 1 . 7 1 5 Utility 7 | . 1 1 1 . . 1 2 . 1 Weapon 11 | . . . 2 . . 2 2 1 4 Highest Loss Streak 7 | . 1 1 2 . 1 2 4 1 7 To Critical Strikes . | . . . . . . . . . . Average Backups 18 | 4 9 17 17 19 19 18 19 19 22 Power 1 | . . 1 2 3 3 1 1 1 1 Propulsion 1 | 1 1 2 2 3 3 3 1 . . Utility 9 | . 2 8 10 10 10 8 10 11 14 Weapon 4 | 1 4 4 3 3 3 4 5 5 4 Tool/Special . | . . . . . . . . . . Unused Backups 40 | 1 1 3 2 . 2 2 6 1 22 Power 5 | . . . . . 2 1 . . 2 Propulsion 6 | 1 1 1 2 . . . 1 . . Utility 24 | . . 1 . . . 1 4 1 17 Weapon 4 | . . 1 . . . . 1 . 2 Tool/Special 1 | . . . . . . . . . 1 Average Slot Usage (%) 96 | . 96 97 97 100 97 94 94 88 96 Engine 10 | . 14 11 11 11 11 9 8 9 8 Treads 9 | . . 10 16 11 11 9 5 5 10 Leg 4 | . . . . . . . 7 19 13 Wheel 13 | . 26 21 14 22 19 18 8 . 1 Device 1 | . 10 2 . . . . . . . Storage 10 | . 14 11 11 11 11 9 9 9 9 Processor 14 | . 1 11 11 11 11 15 22 18 16 Protection 6 | . . 7 11 11 11 8 3 . 8 Ballistic Gun 10 | . 15 18 13 11 19 3 1 . 10 Launcher 3 | . 6 . 7 11 2 2 1 2 4 Impact Weapon 4 | . 5 . 1 . . 11 12 8 . Slashing Weapon 5 | . . . . . . 7 11 15 12 Peak Build Rating 31 | 7 12 25 26 23 23 30 30 31 31 Average Rating 23 | 4 10 20 23 22 22 26 27 27 28 On Entrance 19 | . 7 9 25 24 23 22 30 30 21 Naked Turns . | . . . . . . . . . . Heaviest Build 96 | 14 20 63 64 61 64 67 65 54 96 Greatest Support 44 | 20 20 30 44 20 20 20 35 40 40 Greatest Overweight (x) 6 | 1 1 6 6 3 6 3 6 4 5 Average Overweight (x) 2 | . . 2 2 3 3 2 2 1 3 Largest Inventory Capacity 25 | 8 10 20 20 20 20 20 20 20 25 Average Capacity 19 | 6 9 19 20 20 20 20 20 20 23 Most Carried 25 | 6 10 20 20 20 20 20 20 20 25 Average Carried 18 | 4 9 17 17 19 19 18 19 19 22 Final Capacity 25 | 8 10 20 20 20 20 20 20 20 25 Final Carried 20 | 6 10 19 18 20 19 20 20 20 20 Class Distribution -------------------- 53% | Mutant 15% | Bothacker-Gladiator 13% | Bothacker-Mutant 11% | Scavenger-Gladiator 3% | Scavenger-Mutant Dominant Class ---------------- Mutant | -10/Materials Mutant | -9/Materials Mutant | -9/Mines Mutant | -9/Exiles Mutant | -8/Mines Scavenger-Gladiator | -8/Materials Scavenger-Gladiator | -8/Garrison Bothacker-Gladiator | -8/Materials Bothacker-Mutant | -8/Garrison Resources | -11 -10 -9 -9 -9 -8 -8 -8 -8 -8 ----------- Run | Yrd Mat Mat Min Exi Min Mat Gar Mat Gar Matter Collected 3404 | 225 417 991 709 . 193 205 251 98 315 Remotely . | . . . . . . . . . . Salvage Created 4083 | 151 455 1114 253 . 178 282 959 191 500 Parts 239 | 16 34 71 12 . 7 9 49 9 32 Haulers Intercepted 7 | . 2 5 . . . . . . . Recyclers Shooed 2 | . . . 1 . . 1 . . . Parts Field Recycled . | . . . . . . . . . . Retrieved Matter . | . . . . . . . . . . Parts Self-Destructed . | . . . . . . . . . . Prevented . | . . . . . . . . . . Kills | -11 -10 -9 -9 -9 -8 -8 -8 -8 -8 ------- Run | Yrd Mat Mat Min Exi Min Mat Gar Mat Gar Combat Hostiles Destroyed 114 | . 12 20 24 . 7 5 28 1 17 Melee 17 | . . . . . . 3 9 1 4 Guns 33 | . 6 10 7 . 2 1 2 . 5 Cannons 7 | . . 7 . . . . . . . AOE 49 | . 6 3 17 . 5 . 10 . 8 Classes Destroyed 15 | 2 6 1 2 . . . 2 . 2 Worker 11 | . 4 3 2 . . . . 2 . Tunneler 7 | 5 . 1 . . 1 . . . . Hauler 7 | . 2 5 . . . . . . . Recycler 5 | 1 . 1 1 . . 1 . 1 . Operator 2 | . 2 . . . . . . . . Watcher 5 | . 2 3 . . . . . . . Swarmer 25 | . 6 3 4 . . . 7 . 5 Grunt 43 | . 6 10 . . 7 2 11 1 6 Brawler 1 | . . . . . . . . . 1 Duelist 3 | . . . . . . . 1 . 2 Sentry 16 | . . 7 . . . 3 6 . . Demolisher 2 | . . . 2 . . . . . . Hunter 1 | . . . . . . . . . 1 Programmer 5 | . . . . . . . 3 . 2 Assembled 18 | . . . 18 . . . . . . Best Kill Streak 8 | 6 5 8 7 . 3 1 4 2 5 Combat Bots Only 6 | . 3 3 6 . 3 1 4 1 5 Max Kills in Single Turn 4 | 2 2 1 3 . 1 1 4 1 3 Gunslinging 1 | . 1 . . . . . . . . Exploded 4 | . 2 1 3 . 1 . 4 . 3 Melee 2 | . . . . . . 1 1 1 2 Uniques/NPCs Destroyed . | . . . . . . . . . . Combat | -11 -10 -9 -9 -9 -8 -8 -8 -8 -8 -------- Run | Yrd Mat Mat Min Exi Min Mat Gar Mat Gar Hostile Shots Fired 513 | . 32 84 76 . 41 25 147 11 97 Missed 140 | . 6 30 19 . 11 6 33 3 32 Hits 373 | . 26 54 57 . 30 19 114 8 65 Melee 15 | . . 4 9 . . . . . 2 Projectile 358 | . 26 50 48 . 30 19 114 8 63 AOE 10 | . . . 10 . . . . . . Critical Strikes 19 | . . 1 2 . 1 3 7 . 5 Actively Blocked 1 | . . . . . . . . . 1 Part Disruptions 1 | . . . 1 . . . . . . Damage Taken 6427 | . 349 784 1316 . 539 304 1799 170 1166 Core 970 | . 84 112 105 . 119 15 360 18 157 Absorbed by Shields . | . . . . . . . . . . Redirected to Shielding 29 | . . . . . . . . . 29 Core Remaining (%) 60 | 100 66 . . . 16 . . . . Volleys Fired 250 | 11 29 85 63 . 23 2 11 . 26 Largest 3 | 2 2 2 2 . 2 3 2 . 2 Hottest 79 | 40 60 53 56 . 63 79 55 . 55 Shots Fired 449 | 22 56 154 102 . 43 5 16 1 50 Gun 353 | 22 42 127 83 . 32 3 9 . 35 Cannon 20 | . . 20 . . . . . . . Launcher 75 | . 14 7 19 . 11 2 7 1 14 Special 1 | . . . . . . . . . 1 Kinetic 373 | 22 42 147 83 . 32 3 9 . 35 Thermal . | . . . . . . . . . . Explosive 75 | . 14 7 19 . 11 2 7 1 14 Electromagnetic . | . . . . . . . . . . Robot Hit Streak 10 | 3 7 10 8 . 9 3 4 . 9 Robot Miss Streak 8 | 2 8 5 5 . 2 1 2 2 3 Penetration Max . | . . . . . . . . . . Secondary Targets 3 | . 1 2 . . . . . . . Max Gunslinging Chain 1 | . 1 1 . . . . . . . Shots Hit Robots 339 | 11 36 100 47 . 28 19 57 6 35 Core Hits 205 | 7 21 52 36 . 21 5 25 5 33 Critical Kills 3 | . . . 1 . . . 1 1 . Critical Parts Destroyed 13 | . 2 . . . . 2 9 . . Critical Strikes 18 | . 2 . 1 . . 2 12 1 . Destroy 1 | . . . 1 . . . . . . Smash 15 | . 2 . . . . 2 10 1 . Sever 2 | . . . . . . . 2 . . Melee Attacks 167 | . 17 2 4 . . 21 95 8 20 Impact 91 | . 17 2 4 . . 17 49 2 . Slashing 76 | . . . . . . 4 46 6 20 Piercing . | . . . . . . . . . . Sneak Attacks 13 | . 7 1 . . . 1 . 4 . Combat Hostiles . | . . . . . . . . . . Follow-up Attacks 25 | . . . . . . 3 19 1 2 Damage Inflicted 11371 | 163 1606 1915 1589 . 1021 591 2469 399 1618 Guns 2889 | 163 259 1110 581 . 306 30 98 . 342 Cannons 368 | . . 368 . . . . . . . Explosions 4679 | . 696 368 999 . 715 32 729 37 1103 Melee 3417 | . 651 60 . . . 529 1642 362 173 Ramming 18 | . . 9 9 . . . . . . Kinetic 3257 | 163 259 1478 581 . 306 30 98 . 342 Thermal . | . . . . . . . . . . Explosive 4679 | . 696 368 999 . 715 32 729 37 1103 Electromagnetic . | . . . . . . . . . . Impact 2188 | . 651 60 . . . 469 946 62 . Slashing 1229 | . . . . . . 60 696 300 173 Piercing . | . . . . . . . . . . Highest Corruption 17 | . . . 1 1 1 . 14 14 17 Average Corruption 9 | . . . 1 1 1 . 13 14 16 Corruption Purged . | . . . . . . . . . . Corruption Blocked . | . . . . . . . . . . Effects 129 | . . . 8 1 4 . 32 16 68 Message Errors 24 | . . . 2 . 1 . 5 3 13 Matter Fused 28 | . . . 3 . 1 . 3 4 17 Heat Flow Errors 15 | . . . 1 1 . . 3 2 8 Energy Discharges 15 | . . . 1 . . . 4 1 9 Parts Rejected 1 | . . . . . . . . 1 . Data Loss (minor) 16 | . . . . . 1 . 8 2 5 Data Loss (major) 15 | . . . . . 1 . 6 . 8 Misfires 5 | . . . . . . . . 1 4 Alerts 8 | . . . 1 . . . 2 2 3 Misdirections 1 | . . . . . . . 1 . . Weapon Failures 1 | . . . . . . . . . 1 Overload Shots . | . . . . . . . . . . Overflow Damage 975 | . 430 . 30 . 13 114 344 . 44 Projectiles . | . . . . . . . . . . Explosions 131 | . 22 . 30 . 13 . 22 . 44 Melee 844 | . 408 . . . . 114 322 . . Knockbacks 11 | . 2 3 . . . 3 3 . . Impact 8 | . 2 . . . . 3 3 . . Kinetic 3 | . . 3 . . . . . . . Secondary . | . . . . . . . . . . Self-Inflicted Damage 616 | . 62 4 219 . 29 19 41 . 242 Shots 21 | . 2 . 6 . 1 2 2 . 8 Rammed 3 | . . 1 2 . . . . . . Targets Rammed 3 | . . 1 2 . . . . . . Kicked . | . . . . . . . . . . Crushed . | . . . . . . . . . . Highest Temperature 273 | . 27 43 153 212 114 47 233 241 273 Average Temperature 45 | . 15 9 26 107 49 21 64 112 79 Received Heat Transfer 2091 | . 138 228 60 . 288 198 846 90 243 Siege Activations . | . . . . . . . . . . Martial Activations . | . . . . . . . . . . Shielding Activations . | . . . . . . . . . . Robots Disrupted . | . . . . . . . . . . Combat Hostiles . | . . . . . . . . . . Robots Corrupted 13 | . 4 . . . . 2 7 . . Combat Hostiles 8 | . . . . . . 1 7 . . Parts Fried 15 | . 5 . . . . 3 7 . . Impact Corruptions 29 | . 14 . . . . 4 11 . . Robots Melted . | . . . . . . . . . . Combat Hostiles . | . . . . . . . . . . Parts Melted 1 | . . . . . . . . 1 . Heat Transferred . | . . . . . . . . . . Parts Sabotaged . | . . . . . . . . . . Parts Stolen . | . . . . . . . . . . Parts Stripped . | . . . . . . . . . . Power Chain Reactions . | . . . . . . . . . . Alert | -11 -10 -9 -9 -9 -8 -8 -8 -8 -8 ------- Run | Yrd Mat Mat Min Exi Min Mat Gar Mat Gar Maximum Alert Level 3 | . 1 1 . . . . 3 2 3 Low Security (%) 46 | 100 46 39 100 . 100 100 17 . . Level 1 23 | . 53 60 . . . . 7 89 22 Level 2 23 | . . . . . . . 43 10 77 Level 3 6 | . . . . . . . 31 . . Level 4 . | . . . . . . . . . . Level 5 . | . . . . . . . . . . High Security . | . . . . . . . . . . Max Security . | . . . . . . . . . . Peak Influence 851 | 15 276 300 106 . 96 50 851 414 728 Initial 414 | . . 101 96 . . 3 . 414 209 Average 260 | 4 168 195 25 . 24 20 520 351 478 Influence Increases 3815 | 30 588 686 332 . 222 168 1041 139 609 Destroy 0b10 Robot/C 1935 | . 240 400 120 . 140 100 605 75 255 Destroy 0b10 Robot/NC 182 | 30 50 65 15 . 5 5 . 12 . Destroy Leader 314 | . 68 116 20 . 20 30 20 24 16 Allied During Kill 67 | . . . . . . . 59 8 . Successful Hack 95 | . 37 5 . . . 9 33 . 11 Disable Machine 177 | . 75 60 . . 30 . . 12 . Anti-Garrison Action 390 | . . . . . . . 239 . 151 Destroy Structure 436 | . 58 25 132 . 27 9 73 8 104 Lose Combat Pursuer 219 | . 60 15 45 . . 15 12 . 72 Influence Decreases 3107 | 30 347 678 581 . 213 176 191 667 224 Entered New Map 851 | . . 140 153 . . 6 1 437 114 Time Decay 1776 | 30 327 498 375 . 203 153 . 190 . Lost Part 400 | . 20 40 53 . 10 17 130 20 110 Lost Ally 80 | . . . . . . . 60 20 . Squads Dispatched 9 | . 5 3 . . . . . 1 . Investigation 4 | . 3 1 . . . . . . . Extermination . | . . . . . . . . . . Reinforcement 5 | . 2 2 . . . . . 1 . Assault . | . . . . . . . . . . Garrison . | . . . . . . . . . . Intercept . | . . . . . . . . . . Searches Triggered . | . . . . . . . . . . Construction Impeded . | . . . . . . . . . . Haulers Reinforced . | . . . . . . . . . . Active Scanning Responses . | . . . . . . . . . . Cargo Convoy Interrupts . | . . . . . . . . . . Stealth | -11 -10 -9 -9 -9 -8 -8 -8 -8 -8 --------- Run | Yrd Mat Mat Min Exi Min Mat Gar Mat Gar Distress Signals 8 | . 1 6 . . . 1 . . . Communications Jammed . | . . . . . . . . . . Distress Signals . | . . . . . . . . . . Times Spotted 171 | . 22 35 32 . 8 9 32 7 26 Peak Tracking Total 6 | . 3 4 5 . 3 3 4 2 6 Tactical Retreats 15 | . 3 1 4 . . 1 1 . 5 Traps | -11 -10 -9 -9 -9 -8 -8 -8 -8 -8 ------- Run | Yrd Mat Mat Min Exi Min Mat Gar Mat Gar Traps Triggered 18 | . 2 1 . . . . 10 1 4 Indirectly . | . . . . . . . . . . Trap Hack Attempts . | . . . . . . . . . . Triggered . | . . . . . . . . . . Disarmed . | . . . . . . . . . . Reprogrammed . | . . . . . . . . . . Reused . | . . . . . . . . . . Traps Extracted . | . . . . . . . . . . Installed . | . . . . . . . . . . Triggered . | . . . . . . . . . . Machines | -11 -10 -9 -9 -9 -8 -8 -8 -8 -8 ---------- Run | Yrd Mat Mat Min Exi Min Mat Gar Mat Gar Machines Disabled 18 | . 5 4 . . 2 . 4 1 2 Max in Single Turn 2 | . 2 2 . . 1 . 1 1 1 Garrison Relay 6 | . . . . . . . 4 . 2 Machines Repaired . | . . . . . . . . . . Machines Dismantled . | . . . . . . . . . . Machines Sabotaged . | . . . . . . . . . . Overloaded Fab Kills . | . . . . . . . . . . Hacking | -11 -10 -9 -9 -9 -8 -8 -8 -8 -8 --------- Run | Yrd Mat Mat Min Exi Min Mat Gar Mat Gar Machines Accessed 21 | . 4 4 . 1 . 4 4 2 2 Terminals 17 | . 4 3 . . . 3 4 1 2 Fabricators . | . . . . . . . . . . Repair Stations . | . . . . . . . . . . Recycling Units . | . . . . . . . . . . Scanalyzers 1 | . . 1 . . . . . . . Garrison Access 2 | . . . . . . 1 . 1 . Total Hacks 78 | . 20 9 . 23 . 10 9 3 4 Successful 45 | . 9 3 . 23 . 5 3 1 1 Failed 33 | . 11 6 . . . 5 6 2 3 Catastrophic 7 | . 2 3 . . . . 1 . 1 Database Lockouts . | . . . . . . . . . . Manual 34 | . 17 6 . . . 7 2 2 . Terminals 51 | . 20 7 . . . 9 9 2 4 Fabricators . | . . . . . . . . . . Repair Stations . | . . . . . . . . . . Recycling Units . | . . . . . . . . . . Scanalyzers 2 | . . 2 . . . . . . . Garrison Access 2 | . . . . . . 1 . 1 . Terminal Hacks 30 | . 3 . . 23 . 1 2 . 1 Record 24 | . . . . 23 . 1 . . . Part Schematic 1 | . 1 . . . . . . . . Open Door 1 | . . . . . . . 1 . . Emergency Access Points 1 | . . . . . . . . . 1 Terminal Index 1 | . 1 . . . . . . . . Registered Prototypes 1 | . 1 . . . . . . . . Patrol Navigation 1 | . . . . . . . 1 . . Fabricator Hacks . | . . . . . . . . . . Repair Station Hacks . | . . . . . . . . . . Recycling Unit Hacks . | . . . . . . . . . . Scanalyzer 2 | . . 2 . . . . . . . Insert Component 1 | . . 1 . . . . . . . Analyze 1 | . . 1 . . . . . . . Garrison Access Hacks 2 | . . . . . . 1 . 1 . Unlock Access 2 | . . . . . . 1 . 1 . Unauthorized Hacks 11 | . 6 1 . . . 3 1 . . Terminals 11 | . 6 1 . . . 3 1 . . Botnet 8 | . 4 1 . . . 2 1 . . Operators 3 | . 2 . . . . 1 . . . Fabricators . | . . . . . . . . . . Repair Stations . | . . . . . . . . . . Recycling Units . | . . . . . . . . . . Scanalyzers . | . . . . . . . . . . Garrison Access . | . . . . . . . . . . Data Cores Recovered . | . . . . . . . . . . Used . | . . . . . . . . . . Hacking Detections 16 | . 3 3 . . . 3 4 1 2 Full Trace Events 3 | . 2 1 . . . . . . . Feedback Events . | . . . . . . . . . . Feedback Blocked . | . . . . . . . . . . Robot Schematics Acquired . | . . . . . . . . . . Robots Built . | . . . . . . . . . . Authchips . | . . . . . . . . . . Time . | . . . . . . . . . . Total Robot Build Rating . | . . . . . . . . . . Part Schematics Acquired 2 | . 1 1 . . . . . . . Parts Built . | . . . . . . . . . . Authchips . | . . . . . . . . . . Time . | . . . . . . . . . . Total Part Build Rating . | . . . . . . . . . . Parts Repaired . | . . . . . . . . . . Time . | . . . . . . . . . . Parts Recycled . | . . . . . . . . . . Recycled Matter . | . . . . . . . . . . Retrieved Matter . | . . . . . . . . . . Retrieved Components . | . . . . . . . . . . Parts Scanalyzed 1 | . . 1 . . . . . . . Part Schematics Acquired 1 | . . 1 . . . . . . . Parts Damaged . | . . . . . . . . . . Bothacking | -11 -10 -9 -9 -9 -8 -8 -8 -8 -8 ------------ Run | Yrd Mat Mat Min Exi Min Mat Gar Mat Gar Used RIF Installer 2 | . . . . . . . 2 . . Threat Obfuscator 1 | . . . . . . . 1 . . Robots Hacked . | . . . . . . . . . . Non-combat . | . . . . . . . . . . Combat . | . . . . . . . . . . Robot Hacks Applied . | . . . . . . . . . . Relay Couplers Released 24 | . . . . . . . 15 . 9 Machine Destruction 24 | . . . . . . . 15 . 9 Attached 2 | . . . . . . . . . 2 Fabnet Peak Effective % . | . . . . . . . . . . Robots Rewired 3 | . . . . . . . 3 . . Allies Hacked . | . . . . . . . . . . Hacks Repelled . | . . . . . . . . . . Allies | -11 -10 -9 -9 -9 -8 -8 -8 -8 -8 -------- Run | Yrd Mat Mat Min Exi Min Mat Gar Mat Gar Total Allies 4 | . . . . . . . 4 . . Largest Group 3 | . . . . . . . 3 1 . Highest-Rated Group 48 | . . . . . . . 48 31 . Highest-Rated Ally 31 | . . . . . . . 31 31 . Total Orders . | . . . . . . . . . . Ally Attacks 69 | . . . . . . . 47 22 . Total Damage 803 | . . . . . . . 405 398 . Kills 9 | . . . . . . . 5 4 . Allies Corrupted . | . . . . . . . . . . Allies Melted 2 | . . . . . . . 2 . . Intel | -11 -10 -9 -9 -9 -8 -8 -8 -8 -8 ------- Run | Yrd Mat Mat Min Exi Min Mat Gar Mat Gar Active Infowar (turns) 6816 | . 705 1339 1658 184 788 379 1753 10 . Optics 6218 | . 107 1339 1658 184 788 379 1753 10 . Terrain 856 | . 598 258 . . . . . . . Robot Analysis Total . | . . . . . . . . . . Derelict Logs Recovered 1 | . . . 1 . . . . . . Drone Launches . | . . . . . . . . . . Drone Recoveries . | . . . . . . . . . . Exploration | -11 -10 -9 -9 -9 -8 -8 -8 -8 -8 ------------- Run | Yrd Mat Mat Min Exi Min Mat Gar Mat Gar Turns Passed 9096 | 113 794 1339 1658 184 788 379 1753 394 1694 Spaces Moved 4661 | 70 733 787 699 143 525 209 793 150 552 Core 6 | 6 . . . . . . . . . Treads 438 | . . 2 301 . . . 47 11 77 Legs 669 | . . . . . . . 239 129 301 Wheels 3548 | 64 733 785 398 143 525 209 507 10 174 Hover . | . . . . . . . . . . Flight . | . . . . . . . . . . Fastest Speed 50 | 50 80 80 115 125 125 110 110 140 140 Average Speed 154 | 82 83 120 178 125 131 123 171 226 273 Slowest Speed 480 | 95 95 305 305 125 170 125 470 260 480 Overloaded Moves . | . . . . . . . . . . Propulsion Burnouts . | . . . . . . . . . . Robots Hopped . | . . . . . . . . . . Potential Cave-ins . | . . . . . . . . . . Cave-ins Triggered . | . . . . . . . . . . Exploration Rate (%) 59 | 4 94 77 98 54 94 17 85 16 52 Regions Visited 9 Branch Regions 3 Pre-discovered Areas 1 | . . . . 1 . . . . . Known Exits Taken 2 | . . . . . . 1 . 1 . Unknown Exits Taken 6 | 1 1 1 1 1 1 . . . . Scrap Searched 2 | . . . 1 . 1 . . . . Spaces Dug 13 | . 3 . 3 . . 2 4 1 . Terrain Destroyed 515 | . 78 22 195 . 68 14 46 8 84 Melee 13 | . 3 . 3 . . 2 4 1 . Projectile . | . . . . . . . . . . AOE 502 | . 75 22 192 . 68 12 42 7 84 Terrain Rammed . | . . . . . . . . . . Walls Destroyed . | . . . . . . . . . . Machines Disabled . | . . . . . . . . . . Actions | -11 -10 -9 -9 -9 -8 -8 -8 -8 -8 --------- Run | Yrd Mat Mat Min Exi Min Mat Gar Mat Gar Total 5904 | 103 823 1029 1004 148 584 297 1050 195 671 Wait 442 | 3 9 75 210 . 26 51 48 18 2 Move 4651 | 69 732 786 698 142 524 208 791 149 552 Hop . | . . . . . . . . . . Pick Up 134 | 13 15 33 10 3 3 10 20 8 19 Fast Attach . | . . . . . . . . . . Attach 61 | 6 4 10 8 . 1 5 13 5 9 Detach 1 | . . 1 . . . . . . . Swap 59 | . 10 18 6 2 4 1 3 4 11 Drop 59 | 1 7 18 3 1 3 4 7 5 10 Fire 250 | 11 29 85 63 . 23 2 11 . 26 Melee 125 | . 17 2 4 . . 16 64 6 16 Ram 3 | . . 1 2 . . . . . . Kick . | . . . . . . . . . . Crush . | . . . . . . . . . . Escape Stasis 81 | . . . . . . . 55 . 26 Rewire 38 | . . . . . . . 38 . . Trap . | . . . . . . . . . . Miscellaneous . | . . . . . . . . . . Route ------- -11/Scrapyard -10/Materials (discovered 3 exits: *Mat x3) -9/Materials (discovered 2 exits: *Mat / [*Min]) -9/Mines (discovered 3 exits: *Mat x2 / *Exi) -9/Exiles (discovered 2 exits: [*Min x2]) -8/Mines (discovered 2 exits: *Mat x2) -8/Materials -8/Garrison (discovered 4 exits: *Mat x4) -8/Materials -8/Garrison (discovered 2 exits: [*Fac x2]) History --------- Turn | Location | Event 2 | -11/Scrapyard | Met Revision 17 23 | -11/Scrapyard | Discovered new exit (range 15) 114 | -11/Scrapyard | Entered Materials 260 | -10/Materials | Discovered new exit (range 8) 301 | -10/Materials | Build established: Mutant 427 | -10/Materials | Discovered new exit (range 13) 594 | -10/Materials | Discovered new exit (range 3) 908 | -10/Materials | Entered another Materials area 908 | -9/Materials | Evolved 2 slots: Propulsion x1, Utility x1 1789 | -9/Materials | Discovered new exit (range 8) 2214 | -9/Materials | Discovered new exit (range 17) 2247 | -9/Materials | Entered Mines 2310 | -9/Mines | Discovered new exit (range 8) 2356 | -9/Mines | Assembled infested the area 2361 | -9/Mines | Assisted by a Guerilla fighting off Assembled 2807 | -9/Mines | Received a Rocket Launcher from a helpful Derelict 3258 | -9/Mines | Core integrity fell below 50% 3447 | -9/Mines | Deemed a non-threat by the Exiles lab entrance 3503 | -9/Mines | Learned Materials trap positions 3700 | -9/Mines | Discovered new exit (range 8) 3894 | -9/Mines | Discovered new exit (range 5) 3905 | -9/Mines | Entered Exiles 3928 | -9/Exiles | Discovered new exit (range 17) 3943 | -9/Exiles | Met 8R-AWN 3964 | -9/Exiles | Met EX-HEX 4001 | -9/Exiles | Met EX-BIN 4019 | -9/Exiles | Met EX-DEC 4031 | -9/Exiles | Learned location of Zion (-7) 4069 | -9/Exiles | Discovered new exit (range 15) 4089 | -9/Exiles | Entered Mines 4344 | -8/Mines | Discovered new exit (range 8) 4701 | -8/Mines | Core integrity fell below 20% 4721 | -8/Mines | Discovered new exit (range 8) 4877 | -8/Mines | Entered Materials 4877 | -8/Materials | Evolved 2 slots: Utility x1, Weapon x1 4878 | -8/Materials | Loaded intel: 17 trap records 5252 | -8/Materials | Identified exit to Garrison 5256 | -8/Materials | Entered Garrison 5268 | -8/Garrison | Triggered checkpoint 5276 | -8/Garrison | Build established: Scavenger-Gladiator 5336 | -8/Garrison | Discovered new exit (range 5) 5340 | -8/Garrison | Lost 4 parts (1p2n1u) 5426 | -8/Garrison | Triggered checkpoint 5467 | -8/Garrison | Garrison Relay disabled 5556 | -8/Garrison | Triggered checkpoint 5611 | -8/Garrison | Discovered new exit (range 9) 5700 | -8/Garrison | Triggered checkpoint 5772 | -8/Garrison | Discovered new exit (range 11) 5832 | -8/Garrison | Lost 3 allies 5856 | -8/Garrison | Triggered checkpoint 5918 | -8/Garrison | Discovered new exit (range 10) 5930 | -8/Garrison | Installed Relay Interface Framework 6004 | -8/Garrison | Expanded RIF knowledge: Threat Obfuscation 6038 | -8/Garrison | Triggered checkpoint 6091 | -8/Garrison | Garrison Relay disabled 6196 | -8/Garrison | Triggered checkpoint 6210 | -8/Garrison | System corruption reached 10% 6254 | -8/Garrison | Lost 4 parts (3n1w) 6264 | -8/Garrison | Garrison Relay disabled 6346 | -8/Garrison | Core integrity fell below 50% 6740 | -8/Garrison | Build established: Bothacker-Gladiator 6742 | -8/Garrison | Triggered checkpoint 6795 | -8/Garrison | Garrison Relay disabled 6834 | -8/Garrison | Rescued a captive Derelict 7009 | -8/Garrison | Entered Materials 7009 | -8/Materials | Accompanied by 1 ally 7401 | -8/Materials | Identified exit to Garrison 7403 | -8/Materials | Entered Garrison 7441 | -8/Garrison | Triggered checkpoint 7536 | -8/Garrison | Garrison Relay disabled 7617 | -8/Garrison | Triggered checkpoint 7618 | -8/Garrison | Triggered checkpoint 7686 | -8/Garrison | Discovered new exit (range 10) 7741 | -8/Garrison | Triggered checkpoint 7811 | -8/Garrison | Garrison Relay disabled 8361 | -8/Garrison | Build established: Bothacker-Mutant 8891 | -8/Garrison | Core integrity fell below 20% 9043 | -8/Garrison | Discovered new exit (range 10) 9097 | -8/Garrison | Destroyed by Y-45 Defender with Beam Rifle Last Messages --------------- 09043_ EXIT=FOUND 09068_ Detecting nearby RIF Installer. 09072_ System corrupted: Matter fused (-9). 09081_ Minigun destroyed. 09084_ S-10 Pest destroyed. 09084_ Lgt. Treads destroyed. 09085_ Imp. Ion Engine destroyed. 09087_ Destroyed Unknown Flight Unit. 09087_ S-10 Pest destroyed. 09088_ Critical hit (Burn: +37). 09089_ :IFOGH9L8CF:UNHA7=Z#P/ 09090_ S-10 Pest destroyed. 09090_ Destroyed Unknown Flight Unit. 09090_ Mni. Grenade Launcher destroyed. 09090_ Hvy. Assault Rifle destroyed. 09093_ Lgt. Treads destroyed. 09093_ Katana destroyed. 09094_ Discarded Melee Analysis Suite. 09095_ Jacked Y-45 Defender... 09097_ Discarded Relay Coupler [Grunt]. Map ----- +----------------------------------------------------+ | " #???????????????????? | | #########"#???????????????????? | | #??????# #??????????????????? | | ##++####"# ##??????# "??????????????????? | | ## #??# # ##????? "??????????????????? | | ##### #??# # # #????? "??????????????????? | | ????# #??# ###????? "?+????????????????? | | ????# #??#### # * ##??????# "??????????????????? | | ????# #????# # #??????# #??????????????????? | | ????# ####### = ######### #???+??????????????? | | ????# * + ????????????????? | | ????# ! + ????????????????? | | ????####### #### ############???+??????????????? | | ??????????# #??# #?????????????????????????????? | | ??????????# #??# #?????????????????????????????? | | ??????????# #??# #?????????????????????????????? | | ??????????# #??# #??????????????#??????????????? | | ??????????# #??# #????????????????#????????????? | | ??????????# #??# #?????????????? #????????????? | | ??????????# #??# #????????????? % #????????????? | | ??????????# #??# #???????????? ##????????????? | | ??????????# #??# #?????????? % #????????????? | | ?????????? ??# #????????? #????????????? | | ?????????? ??# #??###### #????????????? | | ?????????? ??# #### sss #??""""???????? | | ?????????? ??+ ; @* "???????? | | ????????? #?# ##### Y ##???""""???????? | | ????????? #?# #???# Y #####???????????????? | | ????????? #?# #???# #???????????????????? | | ????????? #?# #???# ###???????????????????? | | ???????? ## ##?# #???# "?????????????????????? | | ????????#?? ???# #???# T#?????????????????????? | | ??????????? ???# ???#####?????????????????????? | | ??????????? ???+